bitfinex/quotes_SOLUSD_20241118
["timestamp","ask_amount","ask_price","bid_price","bid_amount"]
[1731949019447,12.50151651,239.94,239.86,20.0]
[1731949019949,12.50151651,239.92,239.86,20.0]
[1731949020435,12.50151651,239.9,239.82,20.0]
[1731949020629,12.50151651,239.92,239.85,12.50151651]
[1731949020943,23.776884,239.93,239.86,20.0]
[1731949021136,4.1657,240.06,239.91,12.50151651]
[1731949021333,0.5,240.07,239.91,12.50151651]
[1731949021334,0.09367462,239.98,239.91,12.50151651]
[1731949021534,12.50151651,239.95,239.9,20.0]
[1731949021738,12.50151651,239.99,239.92,20.0]
[1731949022247,0.09367462,239.98,239.92,20.0]
[1731949022427,23.87055862,239.98,239.92,20.0]
[1731949022744,12.50151651,239.99,239.92,20.0]
[1731949022943,12.50151651,240.01,239.93,12.50151651]
[1731949023121,12.50151651,240.01,239.94,20.0]
[1731949024528,23.776884,240.0,239.94,20.0]
[1731949026127,0.12549,240.09,239.96,20.0]
[1731949026335,49.7912,240.1,239.96,20.0]
[1731949026336,33.2769,240.1,239.99,12.50151651]
[1731949026541,33.2769,240.1,240.03,12.50151651]
[1731949026728,12.50151651,240.11,240.03,12.50151651]
[1731949026931,12.50151651,240.09,240.02,20.0]
[1731949027146,12.50151651,240.05,239.97,12.50151651]
[1731949027346,12.50151651,240.03,239.96,20.0]
[1731949027725,12.50151651,240.01,239.96,20.0]
[1731949027943,23.87055862,240.02,239.9,32.3604]
[1731949027944,23.776884,239.98,239.91,12.50151651]
[1731949028449,23.776884,239.98,239.9,32.3604]
[1731949028652,23.776884,239.98,239.91,12.50151651]
[1731949029748,23.776884,239.98,239.89,12.50151651]
[1731949029929,23.776884,239.96,239.89,12.50151651]
[1731949030131,23.776884,239.94,239.85,44.91721651]
[1731949030333,23.776884,239.92,239.85,12.50151651]
[1731949030941,0.21916462,240.02,239.89,12.50151651]
[1731949031127,12.50151651,239.97,239.89,12.50151651]
[1731949031753,12.50151651,239.97,239.88,20.0]
[1731949032337,23.776884,239.96,239.88,20.0]
[1731949033231,23.776884,239.94,239.87,12.50151651]
[1731949033552,23.776884,239.92,239.86,20.0]
[1731949035337,23.776884,239.94,239.87,12.50151651]
[1731949035536,23.776884,239.94,239.9,20.0]
[1731949035948,12.50151651,239.99,239.9,20.0]
[1731949036343,12.50151651,239.97,239.8,32.4157]
[1731949036653,4.26067462,239.98,239.7,42.8038]
[1731949036654,12.50151651,239.9,239.7,42.8038]
[1731949036827,12.50151651,239.86,239.77,12.50151651]
[1731949037033,12.50151651,239.86,239.79,12.50151651]
[1731949037233,12.50151651,239.9,239.81,12.50151651]
[1731949037433,23.776884,239.89,239.81,12.50151651]
[1731949038031,12.50151651,239.94,239.85,12.50151651]
[1731949038237,45.92577462,239.98,239.77,20.5]
[1731949038238,58.33361651,239.98,239.89,12.50151651]
[1731949038440,12.50151651,239.98,239.89,12.50151651]
[1731949038851,12.50151651,239.96,239.88,20.0]
[1731949039347,12.50151651,239.94,239.86,20.0]
[1731949039534,12.50151651,239.92,239.86,20.0]
[1731949039929,23.776884,239.93,239.86,20.0]
[1731949040738,23.776884,239.95,239.87,12.50151651]
[1731949040949,23.776884,239.95,239.89,12.50151651]
[1731949041136,23.87055862,239.97,239.89,12.50151651]
[1731949041637,23.776884,239.97,239.89,12.50151651]
[1731949041963,23.87055862,239.95,239.88,20.0]
[1731949042171,23.87055862,239.95,239.83,20.0]
[1731949042172,12.50151651,239.92,239.86,20.0]
[1731949042459,23.776884,239.91,239.86,20.0]
[1731949043057,23.776884,239.93,239.86,20.0]
[1731949043254,12.50151651,239.92,239.83,12.50151651]
[1731949043457,12.50151651,239.9,239.81,12.50151651]
[1731949043760,23.776884,239.87,239.79,12.50151651]
[1731949043946,23.776884,239.89,239.81,12.50151651]
[1731949044859,23.776884,239.89,239.82,20.0]
[1731949045863,12.50151651,239.88,239.82,20.0]
[1731949049561,23.776884,239.91,239.85,12.50151651]
[1731949049754,12.50151651,239.93,239.86,20.0]
[1731949050963,4.67869725,240.02,239.87,12.50151651]
[1731949051165,12.50151651,239.97,239.9,20.0]
[1731949052749,12.50151651,239.97,239.81,1.0]
[1731949052750,12.50151651,239.99,239.91,12.50151651]
[1731949052946,23.776884,239.98,239.92,20.0]
[1731949054073,12.50151651,239.99,239.92,20.0]
[1731949054279,43.4862,240.04,239.95,12.50151651]
[1731949054280,12.50151651,240.03,239.95,12.50151651]
[1731949054489,12.50151651,240.05,239.96,20.0]
[1731949055355,12.50151651,240.03,239.96,20.0]
[1731949055555,32.1303,240.1,239.97,12.50151651]
[1731949055758,32.1303,240.1,240.02,20.0]
[1731949055968,44.63181651,240.1,240.02,20.0]
[1731949056474,0.09367462,240.09,240.02,20.0]
[1731949056771,12.50151651,240.1,240.02,20.0]
[1731949057172,12.50151651,240.1,240.03,12.50151651]
[1731949057757,12.50151651,240.1,240.04,20.0]
[1731949058459,36.27840051,240.1,240.04,20.0]
[1731949058675,36.27840051,240.1,239.98,13.1091]
[1731949058676,12.50151651,240.09,240.02,12.50151651]
[1731949059057,12.50151651,240.09,240.03,20.0]
[1731949059258,12.50151651,240.1,240.04,20.0]
[1731949060859,12.50151651,240.1,240.02,12.50151651]
[1731949061055,12.50151651,240.1,240.03,20.0]
[1731949062280,23.776884,240.15,240.07,32.50151651]
[1731949062481,12.50151651,240.14,240.07,32.50151651]
[1731949063180,36.27840051,240.15,240.09,20.0]
[1731949063379,30.7707,240.21,240.09,20.0]
[1731949063380,12.50151651,240.16,240.09,20.0]
[1731949063561,12.50151651,240.12,240.09,20.0]
[1731949064079,12.50151651,240.12,240.06,20.0]
[1731949064487,12.50151651,240.15,240.08,12.50151651]
[1731949064782,12.50151651,240.15,240.09,20.0]
[1731949064977,12.50151651,240.16,240.09,32.50151651]
[1731949065987,12.50151651,240.15,240.09,32.50151651]
[1731949066164,12.50151651,240.15,240.09,20.0]
[1731949066560,12.50151651,240.12,240.08,20.0]
[1731949066761,12.50151651,240.09,240.02,32.50151651]
[1731949067176,12.50151651,240.11,240.04,32.50151651]
[1731949067373,12.50151651,240.12,240.06,20.0]
[1731949067964,12.50151651,240.11,240.04,12.50151651]
[1731949068282,12.50151651,240.11,240.05,20.0]
[1731949070172,12.50151651,240.09,240.05,1.0]
[1731949070578,12.50151651,240.09,240.08,0.5]
[1731949070775,12.50151651,240.09,240.07,0.5]
[1731949070992,12.50151651,240.09,240.05,0.5]
[1731949071196,12.50151651,240.07,240.05,0.5]
[1731949072292,7.9958616,240.06,240.05,0.5]
[1731949072485,7.9958616,240.06,240.01,0.5]
[1731949072692,7.9958616,240.02,239.97,1.0]
[1731949072870,7.9958616,239.98,239.97,0.5]
[1731949073073,7.9958616,239.98,239.95,1.0]
[1731949073485,7.9958616,239.98,239.95,0.5]
[1731949073693,7.9958616,239.98,239.93,1.0]
[1731949073874,31.2026,240.08,239.93,1.0]
[1731949073875,7.9958616,239.96,239.93,0.5]
[1731949074075,4.1654,240.07,239.91,0.5]
[1731949074076,7.9958616,239.94,239.91,0.5]
[1731949074306,12.50674884,239.93,239.91,0.5]
[1731949076298,12.50674884,239.95,239.94,0.5]
[1731949076495,12.50674884,239.97,239.94,0.5]
[1731949076972,12.50674884,239.95,239.94,0.5]
[1731949077179,12.50674884,239.95,239.92,0.5]
[1731949077592,12.50674884,239.95,239.94,0.5]
[1731949077777,12.50674884,239.95,239.94,1.0]
[1731949078096,12.50674884,239.97,239.94,1.0]
[1731949078496,12.50674884,239.99,239.97,0.5]
[1731949078677,12.50674884,240.01,239.97,0.5]
[1731949079276,12.50674884,240.01,239.98,0.5]
[1731949079592,12.50674884,240.01,239.99,0.5]
[1731949081093,0.34465462,240.07,239.99,0.5]
[1731949081285,12.50674884,240.01,239.99,0.5]
[1731949081686,0.34465462,240.07,239.99,1.0]
[1731949082087,12.50674884,240.02,239.99,1.0]
[1731949082297,12.50674884,240.04,240.01,0.5]
[1731949082803,12.50674884,240.02,240.01,0.5]
[1731949085315,31.2026,240.08,240.07,0.5]
[1731949085316,12.50674884,240.08,240.07,0.5]
[1731949085486,12.50674884,240.1,240.07,0.5]
[1731949085805,12.7659,240.19,240.07,0.5]
[1731949085806,32.0475,240.18,240.07,1.0]
[1731949085984,12.50674884,240.12,240.07,1.0]
[1731949086179,12.50674884,240.12,240.1,0.5]
[1731949086395,32.0475,240.18,240.1,0.5]
[1731949086611,12.50674884,240.12,240.1,0.5]
[1731949087185,12.50674884,240.12,240.04,1.0]
[1731949087186,25.01349768,240.12,240.04,1.0]
[1731949087506,12.50674884,240.06,240.04,0.5]
[1731949087696,12.50674884,240.08,240.07,0.5]
[1731949088207,12.50674884,240.08,240.05,0.5]
[1731949088512,12.50674884,240.06,240.05,0.5]
[1731949089590,12.50674884,240.1,240.08,0.5]
[1731949089784,12.50674884,240.1,240.06,0.5]
[1731949090888,12.50674884,240.08,240.06,0.5]
[1731949091396,12.50674884,240.08,240.06,1.0]
[1731949091790,12.50674884,240.08,240.06,0.5]
[1731949092303,12.50674884,240.1,240.06,0.5]
[1731949092685,12.50674884,240.08,240.04,1.0]
[1731949093113,12.50674884,240.1,240.08,0.5]
[1731949098409,7.99355316,240.1,240.08,0.5]
[1731949099816,7.99355316,240.1,240.05,0.5]
[1731949099985,7.99355316,240.1,239.88,32.47421264]
[1731949099986,7.99355316,240.06,240.0,0.5]
[1731949100185,7.99355316,240.05,240.01,1.0]
[1731949100386,4.1642,240.14,240.04,0.5]
[1731949100387,7.99355316,240.07,240.04,0.5]
[1731949100787,7.99355316,240.05,240.04,0.5]
[1731949101019,7.99355316,240.07,240.04,0.5]
[1731949101792,7.99355316,240.07,240.03,0.5]
[1731949102008,7.99355316,240.07,240.04,0.5]
[1731949102309,0.21916462,240.15,240.08,0.5]
[1731949102518,10.4062,240.24,240.1,0.5]
[1731949102711,7.99355316,240.14,240.1,0.5]
[1731949103010,7.99355316,240.12,240.1,0.5]
[1731949103211,7.99355316,240.12,240.08,0.5]
[1731949103415,7.99355316,240.1,240.08,0.5]
[1731949103616,7.99355316,240.1,240.06,0.5]
[1731949103798,7.99355316,240.08,240.06,0.5]
[1731949104918,7.99355316,240.08,240.04,0.5]
[1731949105604,7.99355316,240.08,240.06,0.5]
[1731949106616,7.99355316,240.14,240.09,0.5]
[1731949107103,7.99355316,240.12,240.09,0.5]
[1731949108398,7.99355316,240.12,240.07,0.5]
[1731949108600,7.99355316,240.1,240.05,1.0]
[1731949109316,7.99355316,240.1,240.07,0.5]
[1731949110413,7.99355316,240.1,240.05,1.0]
[1731949110721,7.99355316,240.12,240.05,1.0]
[1731949111421,0.12549,240.11,240.05,1.0]
[1731949111607,0.12549,240.11,240.06,0.5]
[1731949111803,23.99604862,240.17,240.07,1.0]
[1731949112119,7.99355316,240.15,240.1,0.5]
[1731949114418,0.09367462,240.17,240.09,0.5]
[1731949114419,0.21916462,240.17,240.12,1.0]
[1731949114619,7.99355316,240.18,240.12,1.0]
[1731949114840,0.09367462,240.17,240.12,1.0]
[1731949117339,8.08722778,240.17,240.12,1.0]
[1731949117515,7.99355316,240.16,240.12,1.0]
[1731949117823,7.99355316,240.16,240.12,0.5]
[1731949118337,8.08722778,240.17,240.12,0.5]
[1731949118507,7.99355316,240.14,240.08,1.0]
[1731949118818,7.99355316,240.09,240.04,1.0]
[1731949119334,0.25098,240.15,240.02,1.0]
[1731949119627,23.776884,240.16,240.02,1.0]
[1731949119628,24.027864,240.13,240.02,1.0]
[1731949119804,7.99355316,240.07,240.02,1.0]
[1731949120004,7.99355316,240.07,240.02,0.5]
[1731949120231,24.027864,240.13,240.02,1.0]
[1731949120232,12.49305455,240.08,240.02,1.0]
[1731949120529,12.49305455,240.09,240.02,13.49305455]
[1731949120834,12.61854455,240.08,240.02,1.0]
[1731949121215,12.49305455,240.09,240.05,0.5]
[1731949121732,32.7224,240.14,240.07,0.5]
[1731949121733,12.49305455,240.1,240.07,0.5]
[1731949122030,12.49305455,240.12,240.07,1.0]
[1731949124428,12.49305455,240.08,240.04,0.5]
[1731949124604,12.49305455,240.09,240.05,0.5]
[1731949124805,12.49305455,240.1,240.05,0.5]
[1731949125332,12.49305455,240.09,240.06,0.5]
[1731949125727,12.49305455,240.1,240.07,0.5]
[1731949126430,12.49305455,240.1,240.05,0.5]
[1731949126813,12.49305455,240.09,240.05,0.5]
[1731949127031,12.49305455,240.06,240.04,0.5]
[1731949127547,12.49305455,240.07,240.04,0.5]
[1731949127706,12.49305455,240.08,240.05,0.5]
[1731949127908,12.49305455,240.09,240.05,0.5]
[1731949128133,12.49305455,240.11,240.06,0.5]
[1731949128328,0.12549,240.11,240.06,0.5]
[1731949128628,12.49305455,240.14,240.1,0.5]
[1731949129004,0.09367462,240.13,240.1,0.5]
[1731949130431,0.12549,240.1,240.03,0.5]
[1731949130621,12.49305455,240.04,240.03,0.5]
[1731949130830,12.49305455,240.06,240.03,1.0]
[1731949131008,0.12549,240.1,240.03,1.0]
[1731949131009,12.49305455,240.08,240.05,0.5]
[1731949133426,0.12549,240.1,240.05,1.0]
[1731949133427,12.49305455,240.1,240.05,1.0]
[1731949134232,0.09367462,240.09,240.05,0.5]
[1731949134434,12.49305455,240.08,240.03,0.5]
[1731949135834,12.49305455,240.08,240.04,0.5]
[1731949136837,12.49305455,240.08,240.07,0.5]
[1731949137032,12.49305455,240.12,240.07,0.5]
[1731949137418,12.49305455,240.12,240.11,0.5]
[1731949138837,12.49305455,240.14,240.11,0.5]
[1731949139332,0.09367462,240.13,240.09,1.0]
[1731949140436,0.09367462,240.13,240.11,0.5]
[1731949140934,0.09367462,240.13,240.06,20.0]
[1731949140935,31.2948,240.22,240.17,0.5]
[1731949141118,12.49305455,240.19,240.15,0.5]
[1731949141320,12.49305455,240.17,240.09,1.0]
[1731949141522,12.49305455,240.12,240.09,0.5]
[1731949141827,0.09367462,240.11,240.09,0.5]
[1731949144335,0.09367462,240.11,240.05,0.5]
[1731949144336,12.49305455,240.1,240.05,1.0]
[1731949145126,12.49305455,240.1,240.03,31.7168]
[1731949145127,12.49305455,240.1,240.03,1.0]
[1731949145332,12.49305455,240.08,240.03,1.0]
[1731949145835,12.49305455,240.08,240.0,12.49305455]
[1731949145836,12.49305455,240.08,240.06,0.5]
[1731949146040,12.49305455,240.1,240.06,1.0]
[1731949146218,7.9943887,240.1,240.06,1.0]
[1731949146415,0.09367462,240.11,240.08,0.5]
[1731949146649,0.09367462,240.11,240.06,0.5]
[1731949146650,8.08806332,240.11,240.06,1.0]
[1731949147257,8.08806332,240.11,240.08,0.5]
[1731949147762,0.09367462,240.11,240.08,1.0]
[1731949148039,0.09367462,240.11,240.08,0.5]
[1731949148246,0.09367462,240.11,240.08,1.0]
[1731949149425,0.09367462,240.11,240.1,0.5]
[1731949149628,0.09367462,240.11,240.1,1.0]
[1731949150642,7.9943887,240.14,240.1,1.0]
[1731949151043,0.12549,240.21,240.14,1.0]
[1731949151344,7.9943887,240.18,240.14,1.0]
[1731949151742,0.09367462,240.17,240.14,1.0]
[1731949152545,0.09367462,240.17,240.14,0.5]
[1731949152745,31.2948,240.22,240.14,0.5]
[1731949152746,7.9943887,240.19,240.14,1.0]
[1731949152934,0.09367462,240.18,240.12,1.0]
[1731949153137,0.09367462,240.18,240.14,0.5]
[1731949153439,8.08806332,240.18,240.14,1.0]
[1731949154542,8.08806332,240.18,240.12,1.0]
[1731949154848,0.12549,240.17,240.12,1.0]
[1731949155064,8.08806332,240.18,240.14,0.5]
[1731949155435,0.09367462,240.18,240.16,0.5]
[1731949155631,0.09367462,240.18,240.16,1.0]
[1731949156155,7.9943887,240.22,240.17,0.5]
[1731949157633,0.09367462,240.21,240.17,0.5]
[1731949159761,7.9943887,240.2,240.17,0.5]
[1731949159958,7.9943887,240.2,240.14,0.5]
[1731949159959,7.9943887,240.18,240.14,0.5]
[1731949160157,4.25677462,240.21,240.13,0.5]
[1731949160158,7.9943887,240.16,240.13,0.5]
[1731949160453,0.12549,240.2,240.14,0.5]
[1731949160659,7.9943887,240.19,240.14,0.5]
[1731949161270,4.25677462,240.21,240.18,1.0]
[1731949161271,0.09367462,240.21,240.18,1.0]
[1731949162239,7.9943887,240.2,240.16,0.5]
[1731949162648,7.9943887,240.2,240.15,0.5]
[1731949162856,7.9943887,240.2,240.16,0.5]
[1731949163653,7.9943887,240.2,240.17,0.5]
[1731949163858,7.9943887,240.18,240.16,0.5]
[1731949164168,7.9943887,240.18,240.13,1.0]
[1731949164349,7.9943887,240.18,240.13,0.5]
[1731949164554,7.9943887,240.18,240.13,1.0]
[1731949164760,7.9943887,240.18,240.13,0.5]
[1731949165738,7.9943887,240.18,240.13,1.0]
[1731949167048,7.9943887,240.18,240.15,0.5]
[1731949167251,0.25098,240.2,240.15,0.5]
[1731949167452,0.12549,240.18,240.15,0.5]
[1731949167655,0.12549,240.18,240.13,0.5]
[1731949167656,7.9943887,240.17,240.13,1.0]
[1731949168859,7.9943887,240.19,240.13,1.0]
[1731949169352,0.12549,240.18,240.13,1.0]
[1731949169846,7.9943887,240.14,240.1,0.5]
[1731949170167,7.9943887,240.11,240.07,0.5]
[1731949170342,7.9943887,240.11,240.08,0.5]
[1731949170666,7.9943887,240.14,240.1,0.5]
[1731949170961,0.12549,240.17,240.1,1.0]
[1731949171160,7.9943887,240.14,240.1,1.0]
[1731949171465,7.9943887,240.16,240.13,0.5]
[1731949173374,0.12549,240.18,240.12,0.5]
[1731949173375,7.9943887,240.14,240.12,0.5]
[1731949174065,7.9943887,240.14,240.1,0.5]
[1731949174253,7.9943887,240.16,240.12,0.5]
[1731949174765,7.9943887,240.14,240.12,0.5]
[1731949175556,7.9943887,240.14,240.11,0.5]
[1731949176069,7.9943887,240.14,240.12,0.5]
[1731949177061,7.9943887,240.14,240.11,0.5]
[1731949177264,7.9943887,240.14,240.12,0.5]
[1731949177452,7.9943887,240.14,240.11,0.5]
[1731949179869,0.12549,240.17,240.11,0.5]
[1731949180057,7.9943887,240.16,240.12,0.5]
[1731949181371,7.9943887,240.16,240.11,0.5]
[1731949181668,7.9943887,240.16,240.13,0.5]
[1731949182552,7.9943887,240.15,240.13,0.5]
[1731949183070,7.9943887,240.15,240.12,0.5]
[1731949183672,7.9943887,240.16,240.13,0.5]
[1731949185248,7.9943887,240.15,240.13,0.5]
[1731949185459,7.9943887,240.16,240.13,0.5]
[1731949185979,7.9943887,240.15,240.13,0.5]
[1731949186460,0.25098,240.19,240.13,0.5]
[1731949186861,7.9943887,240.16,240.13,0.5]
[1731949187168,7.9943887,240.15,240.13,0.5]
[1731949187469,7.9943887,240.14,240.11,0.5]
[1731949187678,7.9943887,240.12,240.09,0.5]
[1731949187854,7.9943887,240.1,240.09,0.5]
[1731949188058,7.9943887,240.1,240.09,1.0]
[1731949188566,7.9943887,240.1,240.09,0.5]
[1731949189575,7.9943887,240.1,240.04,1.0]
[1731949189762,7.9943887,240.08,240.04,1.0]
[1731949189956,7.9943887,240.08,240.06,0.5]
[1731949190273,7.9943887,240.11,240.09,0.5]
[1731949192174,7.9943887,240.12,240.09,0.5]
[1731949193073,7.9943887,240.11,240.09,0.5]
[1731949193871,35.6417341,240.18,240.11,0.5]
[1731949194051,4.5333341,240.18,240.12,0.5]
[1731949194266,7.9943887,240.15,240.12,0.5]
[1731949194905,7.9943887,240.14,240.12,0.5]
[1731949197509,7.9943887,240.13,240.12,0.5]
[1731949198970,7.9943887,240.12,240.11,0.5]
[1731949199371,7.9943887,240.13,240.11,0.5]
[1731949199766,7.9943887,240.12,240.09,1.0]
[1731949199979,7.9943887,240.11,240.09,1.0]
[1731949201186,7.9943887,240.11,240.09,0.5]
[1731949201877,7.9943887,240.11,240.05,0.5]
[1731949202078,7.9943887,240.11,240.03,1.0]
[1731949202079,7.9943887,240.07,240.03,1.0]
[1731949202255,7.9943887,240.07,240.03,0.5]
[1731949202459,7.9943887,240.07,240.03,1.0]
[1731949202887,0.25098,240.13,240.07,0.5]
[1731949203080,7.9943887,240.12,240.08,0.5]
[1731949203384,7.9943887,240.09,240.04,0.5]
[1731949204088,7.9943887,240.09,240.05,0.5]
[1731949204265,7.9943887,240.07,240.05,0.5]
[1731949204583,7.9943887,240.08,240.05,0.5]
[1731949205092,7.9943887,240.09,240.05,0.5]
[1731949205382,7.9943887,240.12,240.07,1.0]
[1731949205582,7.9943887,240.11,240.07,1.0]
[1731949205786,7.9943887,240.08,240.06,0.5]
[1731949205977,0.09367462,240.1,240.07,0.5]
[1731949206281,0.09367462,240.1,240.08,0.5]
[1731949207393,7.9943887,240.09,240.06,0.5]
[1731949207593,0.09367462,240.1,240.06,0.5]
[1731949207778,7.9943887,240.09,240.06,0.5]
[1731949208785,7.9943887,240.07,240.04,0.5]
[1731949209376,7.9943887,240.05,240.0,0.5]
[1731949209573,7.9943887,240.02,240.0,0.5]
[1731949210121,7.9943887,240.02,239.99,0.5]
[1731949210691,7.9943887,240.0,239.95,1.0]
[1731949210872,7.9943887,240.0,239.97,1.0]
[1731949211672,7.9943887,240.0,239.94,1.0]
[1731949212404,7.9943887,240.0,239.96,0.5]
[1731949212592,7.9943887,240.0,239.94,1.0]
[1731949212888,7.9943887,239.95,239.94,1.0]
[1731949213095,7.9943887,239.95,239.79,38.83151786]
[1731949213096,7.9943887,239.95,239.9,1.0]
[1731949213273,32.2071,240.0,239.87,0.5]
[1731949213274,7.9943887,239.91,239.87,0.5]
[1731949213473,7.9943887,239.88,239.84,0.5]
[1731949213781,7.9943887,239.85,239.83,0.5]
[1731949214297,0.25098,239.83,239.74,0.5]
[1731949214497,7.9943887,239.77,239.75,0.5]
[1731949215090,7.9943887,239.77,239.74,0.5]
[1731949215303,4.42068,239.83,239.74,0.5]
[1731949215304,7.9943887,239.75,239.74,0.5]
[1731949215600,7.9943887,239.75,239.73,1.0]
[1731949216003,7.9943887,239.75,239.73,0.5]
[1731949216714,7.9943887,239.75,239.72,0.5]
[1731949216883,7.9943887,239.77,239.72,0.5]
[1731949217482,0.25098,239.83,239.75,1.0]
[1731949217704,0.25098,239.83,239.77,0.5]
[1731949217907,0.25098,239.83,239.79,0.5]
[1731949219110,7.9943887,239.81,239.79,0.5]
[1731949219403,0.25098,239.8,239.77,0.5]
[1731949219605,7.9943887,239.78,239.75,0.5]
[1731949220184,7.9943887,239.76,239.73,0.5]
[1731949220380,7.9943887,239.74,239.68,0.5]
[1731949220612,0.25098,239.8,239.68,0.5]
[1731949220613,7.9943887,239.72,239.68,0.5]
[1731949220796,7.9943887,239.72,239.7,0.5]
[1731949221399,7.9943887,239.72,239.66,0.5]
[1731949221400,7.9943887,239.72,239.68,0.5]
[1731949221607,7.9943887,239.69,239.66,0.5]
[1731949221802,7.9943887,239.67,239.66,0.5]
[1731949222106,7.9943887,239.69,239.66,0.5]
[1731949222686,7.9943887,239.67,239.66,0.5]
[1731949223987,0.25098,239.7,239.66,0.5]
[1731949224708,8.2453687,239.7,239.66,0.5]
[1731949224911,0.25098,239.77,239.7,0.5]
[1731949225219,7.9943887,239.71,239.66,0.5]
[1731949225397,7.9943887,239.71,239.64,0.5]
[1731949225789,7.9943887,239.69,239.64,0.5]
[1731949225988,0.25098,239.66,239.61,0.5]
[1731949226210,0.25098,239.66,239.56,2.31815747]
[1731949226211,7.9943887,239.63,239.56,1.0]
[1731949226514,7.9943887,239.63,239.56,0.5]
[1731949226813,7.9943887,239.63,239.56,1.0]
[1731949227314,7.9943887,239.63,239.58,0.5]
[1731949227809,7.9943887,239.63,239.59,0.5]
[1731949227994,0.25098,239.6,239.54,0.5]
[1731949228197,0.25098,239.64,239.58,0.5]
[1731949228406,0.25098,239.64,239.58,1.0]
[1731949228803,12.54128013,239.6,239.54,0.5]
[1731949229020,0.25098,239.61,239.56,13.04128013]
[1731949229408,31.1488,239.72,239.62,1.0]
[1731949229711,31.1488,239.72,239.65,12.54128013]
[1731949229921,12.54128013,239.71,239.63,12.54128013]
[1731949230515,4.1712,239.74,239.67,12.54128013]
[1731949230714,12.54128013,239.71,239.64,0.5]
[1731949230918,0.09367462,239.7,239.64,0.5]
[1731949231294,0.09367462,239.7,239.62,13.04128013]
[1731949231295,0.09367462,239.7,239.62,13.54128013]
[1731949231518,0.09367462,239.7,239.62,13.04128013]
[1731949231808,0.12549,239.69,239.62,13.54128013]
[1731949232015,0.25098,239.69,239.62,13.54128013]
[1731949232209,0.12549,239.69,239.66,12.54128013]
[1731949232514,25.82108013,239.75,239.67,12.54128013]
[1731949232714,0.09367462,239.74,239.67,12.54128013]
[1731949233214,0.09367462,239.74,239.68,12.54128013]
[1731949233719,4.1706,239.77,239.7,13.04128013]
[1731949234019,16.71158013,239.79,239.72,12.54128013]
[1731949234189,12.5671,239.81,239.73,13.04128013]
[1731949234393,35.21713436,239.84,239.64,12.54128013]
[1731949234394,32.879,239.84,239.78,13.04128013]
[1731949234603,37.0484,239.84,239.78,13.04128013]
[1731949234794,37.0484,239.84,239.79,12.54128013]
[1731949235214,32.879,239.84,239.79,12.54128013]
[1731949235732,0.09367462,239.83,239.78,13.04128013]
[1731949236016,16.7363,239.86,239.78,13.04128013]
[1731949236216,12.54128013,239.85,239.78,13.54128013]
[1731949236397,12.54128013,239.88,239.81,1.0]
[1731949236604,12.54128013,239.92,239.85,12.54128013]
[1731949237221,12.54128013,239.91,239.84,13.04128013]
[1731949237405,12.54128013,239.89,239.82,13.04128013]
[1731949237608,12.54128013,239.84,239.76,13.04128013]
[1731949237820,12.54128013,239.8,239.75,0.5]
[1731949238115,12.54128013,239.8,239.72,13.04128013]
[1731949238323,0.25098,239.79,239.72,13.04128013]
[1731949238504,0.25098,239.8,239.75,0.5]
[1731949238708,0.12549,239.78,239.75,0.5]
[1731949239225,0.12549,239.81,239.76,0.5]
[1731949239601,0.12549,239.81,239.78,0.5]
[1731949241025,12.54128013,239.84,239.78,1.0]
[1731949241320,0.12549,239.83,239.8,0.5]
[1731949241502,12.54128013,239.84,239.8,0.5]
[1731949242121,0.09367462,239.83,239.8,0.5]
[1731949242417,0.12549,239.86,239.82,0.5]